{"text_format":"1","workbook":"xlsx","n_sheets":5,"sheets":["Monday","Copy Names","Job History","Names","ALL NAMES"],"not_rendered":{"charts":0,"images":0,"macros":1,"external_links":0,"defined_names":2,"comments":1,"pivot_tables":0},"unopened":[],"bounds":{"document_bytes":16777216,"sheet_cells":100000,"rows_first":2000,"rows_last":500,"rows_between":2000,"halvings":0,"cell_chars":16384,"cell_head_chars":4096},"cells_cut":0,"cells_raw":0,"read":"whole","date_system":"1900"}

{"sheet":"Monday","index":0,"n_rows":46,"n_cols":16,"rows_kept":46,"cut":false,"hidden":false,"merged":[]}
["MONDAY"]
[]
[]
[null,null,null,"GOODS IN TEAM ",null,null,null,"FLOOR TEAM",null,null,null,null,null,null,null,"E.Lindo"]
[null,null,null,null,null,null,null,null,null,null,null,null,null,null,null,"J.Gorrell"]
[null,null,1,{"$f":" VLOOKUP( LARGE(Names!$A$2:$A$44*Names!$F$2:$F$44, C6), Names!$A$2:$C$44, 3, 0)","v":"P.Regan"},"2PM",null,1,{"$f":" VLOOKUP( LARGE(Names!$A$2:$A$44*Names!$G$2:$G$44, G6+5), Names!$A$2:$C$44, 3, 0)","v":"A.Walton"},"2PM",null,null,null,null,null,null,"K.Pape"]
[null,null,2,{"$f":" VLOOKUP( LARGE(Names!$A$2:$A$44*Names!$F$2:$F$44, C7), Names!$A$2:$C$44, 3, 0)","v":"M.Flanagan"},"2PM",null,2,{"$f":" VLOOKUP( LARGE(Names!$A$2:$A$44*Names!$G$2:$G$44, G7+5), Names!$A$2:$C$44, 3, 0)","v":"J.Gorrell"},"2PM",null,null,null,null,null,null,"M.Abu"]
[null,null,3,{"$f":" VLOOKUP( LARGE(Names!$A$2:$A$44*Names!$F$2:$F$44, C8), Names!$A$2:$C$44, 3, 0)","v":"A.Wall"},"2PM",null,3,{"$f":" VLOOKUP( LARGE(Names!$A$2:$A$44*Names!$G$2:$G$44, G8+5), Names!$A$2:$C$44, 3, 0)","v":"M.Abu"},"2PM",null,null,null,null,null,null,"M.Flanagan"]
[null,null,4,{"$f":" VLOOKUP( LARGE(Names!$A$2:$A$44*Names!$F$2:$F$44, C9), Names!$A$2:$C$44, 3, 0)","v":"J.Reynolds"},"2PM",null,4,{"$f":" VLOOKUP( LARGE(Names!$A$2:$A$44*Names!$G$2:$G$44, G9+5), Names!$A$2:$C$44, 3, 0)","v":"E.Lindo"},"4PM",null,null,null,null,null,null,"M.Kumar"]
[null,null,5,{"$f":" VLOOKUP( LARGE(Names!$A$2:$A$44*Names!$F$2:$F$44, C10), Names!$A$2:$C$44, 3, 0)","v":"T.Winter"},"4PM",null,5,{"$f":" VLOOKUP( LARGE(Names!$A$2:$A$44*Names!$G$2:$G$44, G10+5), Names!$A$2:$C$44, 3, 0)","v":"G.Hawkins"},"4PM",null,null,null,null,null,null,"M.Lawson"]
[null,null,null,null,null,null,null,null,null,null,null,null,null,null,null,"P.Chapman"]
[null,null,null,null,null,null,null,null,null,null,null,null,null,null,null,"R.Hallgally"]
[null,null,null,null,"2 to 4",null,null,null,null,null,null,null,null,null,null,"S.Abraham"]
[null,null,null,"FORKS",null,null,null,null,null,null,null,null,null,null,null,"S.Pearce"]
[null,null,1,{"$f":"INDEX(Names!$C$2:$C$14,MATCH(MIN(IF(Names!$B$2:$B$14-11>=0,Names!$B$2:$B$14,FALSE)),IF(Names!$B$2:$B$14-11>=0,Names!$B$2:$B$14,FALSE),0))","v":"S.Abraham"},"2PM",null,null,null,null,null,null,null,null,null,null,"S.Stretton"]
[null,null,null,null,null,null,null,"Bread Pickers",null,null,null,null,null,null,null,"T.Bryan"]
[null,null,null,"OPPS",null,null,1,null,null,null,null,null,null,null,null,"A.Bradbury"]
[null,null,1,null,"2PM",null,2,null,null,null,null,null,null,null,null,"A.Nicholls"]
[null,null,2,null,"2PM",null,3,null,null,null,null,null,null,null,null,"A.Wall"]
[null,null,null,"COVER",null,null,4,null,null,null,null,null,null,null,null,"A.Walton"]
[null,null,1,null,"2PM",null,5,null,null,null,null,null,null,null,null,"B.Sutton"]
[null,null,null,"SPONSOR",null,null,6,null,null,null,null,null,null,null,null,"C.Boateng"]
[null,null,1,null,"4PM",null,7,null,null,null,null,null,null,null,null,"C.Keegan"]
[null,null,null,"HYGIENE",null,null,8,null,null,null,null,null,null,null,null,"D.Hickmott"]
[null,null,1,null,"2PM",null,9,null,null,null,null,null,null,null,null,"D.Magill"]
[null,null,null,null,null,null,null,null,null,null,null,null,null,null,null,"E.Mullally"]
[null,null,null,null,null,null,null,null,null,null,null,null,null,null,null,"G.Franklin"]
[null,null,null,null,null,null,null,null,null,null,null,null,null,null,null,"G.Hawkins"]
[null,null,null,null,null,null,null,null,null,null,null,null,null,null,null,"I.Edgar"]
[null,null,null,null,null,null,null,null,null,null,null,null,null,null,null,"J.Allen"]
[null,null,null,null,null,null,null,null,null,null,null,null,null,null,null,"J.Pyke"]
[null,null,null,null,null,null,null,null,null,null,null,null,null,null,null,"J.Reynolds"]
[null,null,null,null,null,null,null,null,null,null,null,null,null,null,null,"L.R.Brown"]
[null,null,null,null,null,null,null,null,null,null,null,null,null,null,null,"P.Green"]
[null,null,null,null,null,null,null,null,null,null,null,null,null,null,null,"P.McArthur"]
[null,null,null,null,null,null,null,null,null,null,null,null,null,null,null,"P.Regan"]
[null,null,null,null,null,null,null,null,null,null,null,null,null,null,null,"R.Diprose"]
[null,null,null,null,null,null,null,null,null,null,null,null,null,null,null,"R.Pembroke"]
[null,null,null,null,null,null,null,null,null,null,null,null,null,null,null,"R.Rozniak"]
[null,null,null,null,null,null,null,null,null,null,null,null,null,null,null,"S.Chow"]
[null,null,null,null,null,null,null,null,null,null,null,null,null,null,null,"S.Tariq"]
[null,null,null,null,null,null,null,null,null,null,null,null,null,null,null,"T.Doyle"]
[null,null,null,null,null,null,null,null,null,null,null,null,null,null,null,"T.Harman"]
[null,null,null,null,null,null,null,null,null,null,null,null,null,null,null,"T.Underwood"]
[null,null,null,null,null,null,null,null,null,null,null,null,null,null,null,"T.Winter"]
[null,null,null,null,null,null,null,null,null,null,null,null,null,null,null,"V.Ilott"]

{"sheet":"Copy Names","index":1,"n_rows":25,"n_cols":9,"rows_kept":25,"cut":false,"hidden":false,"merged":[]}
[]
[]
[]
[null,null,null,"GOODS IN TEAM ",null,null,null,"FLOOR TEAM"]
[]
[null,null,1,"P.Regan","2PM",null,1,"A.Walton","2PM"]
[null,null,2,"M.Flanagan","2PM",null,2,"J.Gorrell","2PM"]
[null,null,3,"A.Wall","2PM",null,3,"M.Abu","2PM"]
[null,null,4,{"$error":"#NUM!"},"2PM",null,4,"E.Lindo","4PM"]
[null,null,5,"T.Winter","4PM",null,5,"G.Hawkins","4PM"]
[]
[]
[null,null,null,null,"2 to 4"]
[null,null,null,"FORKS"]
[null,null,1,"S.Abraham","2PM"]
[null,null,null,null,null,null,null,"Bread Pickers"]
[null,null,null,"OPPS",null,null,1]
[null,null,1,null,null,null,2]
[null,null,2,null,null,null,3]
[null,null,null,"COVER",null,null,4]
[null,null,1,null,null,null,5]
[null,null,null,"SPONSOR",null,null,6]
[null,null,1,null,null,null,7]
[null,null,null,"HYGIENE",null,null,8]
[null,null,1,null,null,null,9]

{"sheet":"Job History","index":2,"n_rows":69,"n_cols":14,"rows_kept":69,"cut":false,"hidden":false,"merged":[]}
[null,"Nº","Name","Goods in(Days)","Pick. (Days)","Fl.Team(Days)","Forks(Days)","Non.Productive",null,null,"Goods in","Picking","Floor team","Forks"]
[null,"Job History!",null,{"$f":"AVERAGE(D3:D999)","v":0.40298507462686567},0,0.44776119402985076,8.9552238805970144E-2,0.94029850746268662,null,null,"T.Underwood",null,"A.Wall","M.Kumar"]
[null,1,"A.Bradbury",{"$f":"COUNTIF($K$2:$K$60000,C3)","v":1},{"$f":"COUNTIF($L$2:$L$60000,C3)","v":0},{"$f":"COUNTIF($M$2:$M$60000,C3)","v":0},{"$f":"COUNTIF($N$2:$N$60000,C3)","v":0},{"$f":"COUNTIF($K$2:$K$60000,C3)+COUNTIF($M$2:$M$60000,C3)+COUNTIF($N$2:$N$60000,C3)","v":1},null,null,"R.Diprose",null,"P.Green","S.Abraham"]
[null,2,"A.Hussey",{"$f":"COUNTIF($K$2:$K$60000,C4)","v":0},{"$f":"COUNTIF($L$2:$L$60000,C4)","v":0},{"$f":"COUNTIF($M$2:$M$60000,C4)","v":0},{"$f":"COUNTIF($N$2:$N$60000,C4)","v":0},{"$f":"COUNTIF($K$2:$K$60000,C4)+COUNTIF($M$2:$M$60000,C4)+COUNTIF($N$2:$N$60000,C4)","v":0},null,null,"A.Nicholls",null,"E.Mullally","S.Stretton"]
[null,3,"A.McFarlane",0,0,0,0,0,null,null,"C.Keegan",null,"R.Rozniak","K.Pape"]
[null,4,"A.Nicholls",1,0,1,0,2,null,null,"P.McArthur",null,"P.Chapman","T.Bryan"]
[null,5,"B.Ratcliffe",0,0,0,0,0,null,null,{"$error":"#N/A"},null,"G.Hawkins","S.Stretton"]
[null,6,"A.Wall",1,0,2,0,3,null,null,"J.Pyke",null,"K.Pape","S.Stretton"]
[null,7,"A.Walton",1,0,2,0,3,null,null,{"$error":"#N/A"},null,"C.Boateng","M.Kumar"]
[null,8,"B.Golubkov",0,0,0,0,0,null,null,"A.Walton",null,"B.Sutton"]
[null,9,"B.Ratcliffe",0,0,0,0,0,null,null,{"$error":"#N/A"},null,"M.Lawson"]
[null,10,"B.Sutton",0,0,1,0,1,null,null,"M.Kumar",null,"A.Walton"]
[null,11,"C.Boateng",0,0,1,0,1,null,null,"K.Pape",null,"S.Pearce"]
[null,12,"C.Keegan",1,0,0,0,1,null,null,"A.Bradbury",null,"M.Lawson"]
[null,13,"D.Caffell",0,0,0,0,0,null,null,"A.Wall",null,"P.Green"]
[null,14,"D.Cooke",0,0,0,0,0,null,null,"S.Pearce",null,"T.Doyle"]
[null,15,"D.Hickmott",1,0,0,0,1,null,null,"G.Franklin",null,"R.Hallgally"]
[null,16,"D.Magill",1,0,0,0,1,null,null,"I.Edgar",null,"J.Pyke"]
[null,17,"D.Roczniak",0,0,0,0,0,null,null,"P.Chapman",null,"S.Chow"]
[null,18,"E.Lindo",1,0,0,0,1,null,null,"S.Abraham",null,"T.Underwood"]
[null,19,"E.Mooney",0,0,0,0,0,null,null,"S.Stretton",null,"M.Kumar"]
[null,20,"E.Mullally",1,0,2,0,3,null,null,"S.Chow",null,"S.Tariq"]
[null,21,"E.Selickis",0,0,0,0,0,null,null,"S.Tariq",null,"R.Pembroke"]
[null,22,"G.Franklin",{"$f":"COUNTIF($K$2:$K$60000,C24)","v":1},{"$f":"COUNTIF($L$2:$L$60000,C24)","v":0},{"$f":"COUNTIF($M$2:$M$60000,C24)","v":0},{"$f":"COUNTIF($N$2:$N$60000,C24)","v":0},{"$f":"COUNTIF($K$2:$K$60000,C24)+COUNTIF($M$2:$M$60000,C24)+COUNTIF($N$2:$N$60000,C24)","v":1},null,null,"R.Pembroke",null,"J.Gorrell"]
[null,23,"G.Hawkins",{"$f":"COUNTIF($K$2:$K$60000,C25)","v":0},{"$f":"COUNTIF($L$2:$L$60000,C25)","v":0},{"$f":"COUNTIF($M$2:$M$60000,C25)","v":1},{"$f":"COUNTIF($N$2:$N$60000,C25)","v":0},{"$f":"COUNTIF($K$2:$K$60000,C25)+COUNTIF($M$2:$M$60000,C25)+COUNTIF($N$2:$N$60000,C25)","v":1},null,null,"J.Gorrell",null,"S.Stretton"]
[null,24,"H.Mohamed",0,0,0,0,0,null,null,"T.Bryan",null,"A.Nicholls"]
[null,25,"I.Edgar",1,0,0,0,1,null,null,"T.Harman",null,"R.Hallgally"]
[null,26,"J.Allen",1,0,1,0,2,null,null,"E.Lindo",null,"T.Winter"]
[null,27,"J.Gorrell",1,0,2,0,3,null,null,"P.Regan",null,"T.Bryan"]
[null,28,"J.Hough",0,0,0,0,0,null,null,"V.Ilott",null,"T.Doyle"]
[null,29,"J.Pyke",1,0,1,0,2,null,null,"R.Hallgally",null,"E.Mullally"]
[null,30,"J.Reynolds",0,0,0,0,0,null,null,"M.Lawson",null,"A.Walton"]
[null,31,"K.Pape",1,0,2,1,4,null,null,"P.Green",null,"J.Allen"]
[null,32,"K.Verdi",0,0,0,0,0,null,null,"J.Allen",null,"K.Pape"]
[null,33,"L.R.Browne",1,0,0,0,1,null,null,"M.Abu",null,"J.Gorrell"]
[null,34,"M.Abu",1,0,1,0,2,null,null,"M.Flanagan",null,"M.Abu"]
[null,35,"M.Borek",0,0,0,0,0,null,null,"D.Magill",null,"T.Winter"]
[null,36,"M.Flanagan",1,0,0,0,1,null,null,"L.R.Browne",null,"R.Hallgally"]
[null,37,"M.Kochowski",0,0,0,0,0,null,null,"D.Hickmott",null,"S.Abraham"]
[null,38,"M.Kumar",1,0,1,2,4,null,null,"T.Winter",null,"A.Wall"]
[null,39,"M.Lawson",1,0,2,0,3,null,null,"E.Mullally",null,"S.Tariq"]
[null,40,"M.Pushotam",0,0,0,0,0]
[null,41,"N.Lukasevicius",0,0,0,0,0]
[null,42,"P.Chapman",1,0,1,0,2]
[null,43,"P.Green",{"$f":"COUNTIF($K$2:$K$60000,C45)","v":0},{"$f":"COUNTIF($L$2:$L$60000,C45)","v":0},{"$f":"COUNTIF($M$2:$M$60000,C45)","v":2},{"$f":"COUNTIF($N$2:$N$60000,C45)","v":0},{"$f":"COUNTIF($K$2:$K$60000,C45)+COUNTIF($M$2:$M$60000,C45)+COUNTIF($N$2:$N$60000,C45)","v":2}]
[null,44,"P.Johnson",{"$f":"COUNTIF($K$2:$K$60000,C46)","v":0},{"$f":"COUNTIF($L$2:$L$60000,C46)","v":0},{"$f":"COUNTIF($M$2:$M$60000,C46)","v":0},{"$f":"COUNTIF($N$2:$N$60000,C46)","v":0},{"$f":"COUNTIF($K$2:$K$60000,C46)+COUNTIF($M$2:$M$60000,C46)+COUNTIF($N$2:$N$60000,C46)","v":0}]
[null,45,"P.Lavender",0,0,0,0,0]
[null,46,"P.McArthur",1,0,0,0,1]
[null,47,"P.Regan",1,0,0,0,1]
[null,48,"R.Diprose",1,0,0,0,1]
[null,49,"R.Hallgally",1,0,2,0,3]
[null,50,"R.O’Meara",0,0,0,0,0]
[null,51,"R.Pembroke",1,0,1,0,2]
[null,52,"R.Rozniak",{"$f":"COUNTIF($K$2:$K$60000,C54)","v":0},{"$f":"COUNTIF($L$2:$L$60000,C54)","v":0},{"$f":"COUNTIF($M$2:$M$60000,C54)","v":1},{"$f":"COUNTIF($N$2:$N$60000,C54)","v":0},{"$f":"COUNTIF($K$2:$K$60000,C54)+COUNTIF($M$2:$M$60000,C54)+COUNTIF($N$2:$N$60000,C54)","v":1}]
[null,53,"S.Abraham",1,0,0,1,2]
[null,54,"S.Brookman",0,0,0,0,0]
[null,55,"S.Chow",1,0,1,0,2]
[null,56,"S.Harrison",0,0,0,0,0]
[null,57,"S.Monk",0,0,0,0,0]
[null,58,"S.Pearce",1,0,1,0,2]
[null,59,"S.Stretton",1,0,1,2,4]
[null,60,"S.Tariq",1,0,1,0,2]
[null,61,"T.Bryan",1,0,1,1,3]
[null,62,"T.Doyle",0,0,2,0,2]
[null,63,"T.Harman",1,0,0,0,1]
[null,64,"T.Watkins",0,0,0,0,0]
[null,65,"T.Winter",0,0,1,0,1]
[null,66,"V.Ilott",1,0,0,0,1]
[null,67,"T.Underwood",1,0,1,0,2]

{"sheet":"Names","index":3,"n_rows":50,"n_cols":30,"rows_kept":50,"cut":false,"hidden":false,"merged":[]}
["Rand","Rank","Name",null,"умножатели","Фильтр (Goods in)","Фильтр (Fl.Team)","Goods in(Days)","Fl.Team(Days)","Pick. (Days)","Forks(Days)",null,null,null,null,null,null,null,null,null,null,null,null,null,null,null,null,null,"Rand","Rank"]
[{"$f":" INT(1000000*RAND()) + ROW()/1000","v":669265.00199999998},{"$f":"RANK($A2,$A$2:$A$44)+COUNTIF(B$1:B1,B1)-1","v":9},"E.Lindo",null,1.5,1,{"$f":" IF( 'Job History'!$D$3 > 0, IF( 1.2*'Job History'!$D$3 < VLOOKUP($C2, 'Job History'!$C:$H, 3, 0), 0, 1 ), 1 )","v":1},1,1,1,1,null,null,null,null,null,null,null,null,null,null,null,null,null,null,null,null,null,{"$f":"RAND()*AG2","v":0},{"$f":"RANK($AC2,$AC$2:$AC$50)+COUNTIF(AD$1:AD1,AD1)-1","v":1}]
[684103.00300000003,{"$f":"RANK($A3,$A$2:$A$44)+COUNTIF(B$1:B2,B2)-1","v":7},"J.Gorrell",null,1.5,1,{"$f":" IF( 'Job History'!$D$3 > 0, IF( 1.2*'Job History'!$D$3 < VLOOKUP($C3, 'Job History'!$C:$H, 3, 0), 0, 1 ), 1 )","v":1},1,1,1,1,null,null,null,null,null,null,null,null,null,null,null,null,null,null,null,null,null,0,{"$f":"RANK($AC3,$AC$2:$AC$50)+COUNTIF(AD$1:AD2,AD2)-1","v":1}]
[416153.00400000002,{"$f":"RANK($A4,$A$2:$A$44)+COUNTIF(B$1:B3,B3)-1","v":30},"K.Pape",null,1.5,1,{"$f":" IF( 'Job History'!$D$3 > 0, IF( 1.2*'Job History'!$D$3 < VLOOKUP($C4, 'Job History'!$C:$H, 3, 0), 0, 1 ), 1 )","v":1},1,1,1,1,null,null,null,null,null,null,null,null,null,null,null,null,null,null,null,null,null,0,{"$f":"RANK($AC4,$AC$2:$AC$50)+COUNTIF(AD$1:AD3,AD3)-1","v":2}]
[680326.005,{"$f":"RANK($A5,$A$2:$A$44)+COUNTIF(B$1:B4,B4)-1","v":8},"M.Abu",null,1.5,{"$f":" IF( 'Job History'!$D$2 > 0, IF( 1.2*'Job History'!$D$2 < VLOOKUP($C5, 'Job History'!$C:$H, 2, 0), 0, 1 ), 1 )","v":1},{"$f":" IF( 'Job History'!$D$3 > 0, IF( 1.2*'Job History'!$D$3 < VLOOKUP($C5, 'Job History'!$C:$H, 3, 0), 0, 1 ), 1 )","v":1},1,1,1,1,null,null,null,null,null,null,null,null,null,null,null,null,null,null,null,null,null,0,{"$f":"RANK($AC5,$AC$2:$AC$50)+COUNTIF(AD$1:AD4,AD4)-1","v":1}]
[927160.00600000005,{"$f":"RANK($A6,$A$2:$A$44)+COUNTIF(B$1:B5,B5)-1","v":2},"M.Flanagan",null,1.5,{"$f":" IF( 'Job History'!$D$2 > 0, IF( 1.2*'Job History'!$D$2 < VLOOKUP($C6, 'Job History'!$C:$H, 2, 0), 0, 1 ), 1 )","v":1},{"$f":" IF( 'Job History'!$D$3 > 0, IF( 1.2*'Job History'!$D$3 < VLOOKUP($C6, 'Job History'!$C:$H, 3, 0), 0, 1 ), 1 )","v":1},1,1,1,1,null,null,null,null,null,null,null,null,null,null,null,null,null,null,null,null,null,0,{"$f":"RANK($AC6,$AC$2:$AC$50)+COUNTIF(AD$1:AD5,AD5)-1","v":3}]
[59116.006999999998,{"$f":"RANK($A7,$A$2:$A$44)+COUNTIF(B$1:B6,B6)-1","v":43},"M.Kumar",null,1.5,1,{"$f":" IF( 'Job History'!$D$3 > 0, IF( 1.2*'Job History'!$D$3 < VLOOKUP($C7, 'Job History'!$C:$H, 3, 0), 0, 1 ), 1 )","v":1},1,1,1,1,null,null,null,null,null,null,null,null,null,null,null,null,null,null,null,null,null,0,{"$f":"RANK($AC7,$AC$2:$AC$50)+COUNTIF(AD$1:AD6,AD6)-1","v":1}]
[490467.00799999997,{"$f":"RANK($A8,$A$2:$A$44)+COUNTIF(B$1:B7,B7)-1","v":21},"M.Lawson",null,1.5,{"$f":" IF( 'Job History'!$D$2 > 0, IF( 1.2*'Job History'!$D$2 < VLOOKUP($C8, 'Job History'!$C:$H, 2, 0), 0, 1 ), 1 )","v":1},{"$f":" IF( 'Job History'!$D$3 > 0, IF( 1.2*'Job History'!$D$3 < VLOOKUP($C8, 'Job History'!$C:$H, 3, 0), 0, 1 ), 1 )","v":1},1,1,1,1,null,null,null,null,null,null,null,null,null,null,null,null,null,null,null,null,null,0,{"$f":"RANK($AC8,$AC$2:$AC$50)+COUNTIF(AD$1:AD7,AD7)-1","v":4}]
[366553.00900000002,{"$f":"RANK($A9,$A$2:$A$44)+COUNTIF(B$1:B8,B8)-1","v":33},"P.Chapman",null,1.5,1,{"$f":" IF( 'Job History'!$D$3 > 0, IF( 1.2*'Job History'!$D$3 < VLOOKUP($C9, 'Job History'!$C:$H, 3, 0), 0, 1 ), 1 )","v":1},1,1,1,1,null,null,null,null,null,null,null,null,null,null,null,null,null,null,null,null,null,0,{"$f":"RANK($AC9,$AC$2:$AC$50)+COUNTIF(AD$1:AD8,AD8)-1","v":1}]
[468570.01,{"$f":"RANK($A10,$A$2:$A$44)+COUNTIF(B$1:B9,B9)-1","v":25},"R.Hallgally",null,1.5,1,{"$f":" IF( 'Job History'!$D$3 > 0, IF( 1.2*'Job History'!$D$3 < VLOOKUP($C10, 'Job History'!$C:$H, 3, 0), 0, 1 ), 1 )","v":1},1,1,1,1,null,null,null,null,null,null,null,null,null,null,null,null,null,null,null,null,null,0,{"$f":"RANK($AC10,$AC$2:$AC$50)+COUNTIF(AD$1:AD9,AD9)-1","v":5}]
[660992.01100000006,{"$f":"RANK($A11,$A$2:$A$44)+COUNTIF(B$1:B10,B10)-1","v":11},"S.Abraham",null,1.5,1,{"$f":" IF( 'Job History'!$D$3 > 0, IF( 1.2*'Job History'!$D$3 < VLOOKUP($C11, 'Job History'!$C:$H, 3, 0), 0, 1 ), 1 )","v":1},1,1,1,1,null,null,null,null,null,null,null,null,null,null,null,null,null,null,null,null,null,0,{"$f":"RANK($AC11,$AC$2:$AC$50)+COUNTIF(AD$1:AD10,AD10)-1","v":1}]
[135835.01199999999,{"$f":"RANK($A12,$A$2:$A$44)+COUNTIF(B$1:B11,B11)-1","v":40},"S.Pearce",null,1.5,1,{"$f":" IF( 'Job History'!$D$3 > 0, IF( 1.2*'Job History'!$D$3 < VLOOKUP($C12, 'Job History'!$C:$H, 3, 0), 0, 1 ), 1 )","v":1},1,1,1,1,null,null,null,null,null,null,null,null,null,null,null,null,null,null,null,null,null,0,{"$f":"RANK($AC12,$AC$2:$AC$50)+COUNTIF(AD$1:AD11,AD11)-1","v":6}]
[595567.01300000004,{"$f":"RANK($A13,$A$2:$A$44)+COUNTIF(B$1:B12,B12)-1","v":15},"S.Stretton",null,1.5,1,{"$f":" IF( 'Job History'!$D$3 > 0, IF( 1.2*'Job History'!$D$3 < VLOOKUP($C13, 'Job History'!$C:$H, 3, 0), 0, 1 ), 1 )","v":1},1,1,1,1,null,null,null,null,null,null,null,null,null,null,null,null,null,null,null,null,null,0,{"$f":"RANK($AC13,$AC$2:$AC$50)+COUNTIF(AD$1:AD12,AD12)-1","v":1}]
[229640.014,{"$f":"RANK($A14,$A$2:$A$44)+COUNTIF(B$1:B13,B13)-1","v":37},"T.Bryan",null,1.5,1,{"$f":" IF( 'Job History'!$D$3 > 0, IF( 1.2*'Job History'!$D$3 < VLOOKUP($C14, 'Job History'!$C:$H, 3, 0), 0, 1 ), 1 )","v":1},0,1,1,1,null,null,null,null,null,null,null,null,null,null,null,null,null,null,null,null,null,0,{"$f":"RANK($AC14,$AC$2:$AC$50)+COUNTIF(AD$1:AD13,AD13)-1","v":7}]
[562943.01500000001,{"$f":"RANK($A15,$A$2:$A$44)+COUNTIF(B$1:B14,B14)-1","v":18},"A.Bradbury",null,1,{"$f":" IF( 'Job History'!$D$2 > 0, IF( 1.2*'Job History'!$D$2 < VLOOKUP($C15, 'Job History'!$C:$H, 2, 0), 0, 1 ), 1 )","v":0},{"$f":" IF( 'Job History'!$D$3 > 0, IF( 1.2*'Job History'!$D$3 < VLOOKUP($C15, 'Job History'!$C:$H, 3, 0), 0, 1 ), 1 )","v":1},0,1,1,0,null,null,null,null,null,null,null,null,null,null,null,null,null,null,null,null,null,0,{"$f":"RANK($AC15,$AC$2:$AC$50)+COUNTIF(AD$1:AD14,AD14)-1","v":1}]
[478275.016,{"$f":"RANK($A16,$A$2:$A$44)+COUNTIF(B$1:B15,B15)-1","v":24},"A.Nicholls",null,2,1,{"$f":" IF( 'Job History'!$D$3 > 0, IF( 1.2*'Job History'!$D$3 < VLOOKUP($C16, 'Job History'!$C:$H, 3, 0), 0, 1 ), 1 )","v":1},1,1,1,0,null,null,null,null,null,null,null,null,null,null,null,null,null,null,null,null,null,0,{"$f":"RANK($AC16,$AC$2:$AC$50)+COUNTIF(AD$1:AD15,AD15)-1","v":8}]
[886058.01699999999,{"$f":"RANK($A17,$A$2:$A$44)+COUNTIF(B$1:B16,B16)-1","v":3},"A.Wall",null,2,1,{"$f":" IF( 'Job History'!$D$3 > 0, IF( 1.2*'Job History'!$D$3 < VLOOKUP($C17, 'Job History'!$C:$H, 3, 0), 0, 1 ), 1 )","v":1},1,1,1,0,null,null,null,null,null,null,null,null,null,null,null,null,null,null,null,null,null,0,{"$f":"RANK($AC17,$AC$2:$AC$50)+COUNTIF(AD$1:AD16,AD16)-1","v":1}]
[689008.01800000004,{"$f":"RANK($A18,$A$2:$A$44)+COUNTIF(B$1:B17,B17)-1","v":6},"A.Walton",null,2,1,1,1,1,1,0,null,null,null,null,null,null,null,null,null,null,null,null,null,null,null,null,null,0,{"$f":"RANK($AC18,$AC$2:$AC$50)+COUNTIF(AD$1:AD17,AD17)-1","v":9}]
[485710.01899999997,{"$f":"RANK($A19,$A$2:$A$44)+COUNTIF(B$1:B18,B18)-1","v":23},"B.Sutton",null,2,{"$f":" IF( 'Job History'!$D$2 > 0, IF( 1.2*'Job History'!$D$2 < VLOOKUP($C19, 'Job History'!$C:$H, 2, 0), 0, 1 ), 1 )","v":1},{"$f":" IF( 'Job History'!$D$3 > 0, IF( 1.2*'Job History'!$D$3 < VLOOKUP($C19, 'Job History'!$C:$H, 3, 0), 0, 1 ), 1 )","v":1},1,1,1,0,null,null,null,null,null,null,null,null,null,null,null,null,null,null,null,null,null,0,{"$f":"RANK($AC19,$AC$2:$AC$50)+COUNTIF(AD$1:AD18,AD18)-1","v":1}]
[599494.02,{"$f":"RANK($A20,$A$2:$A$44)+COUNTIF(B$1:B19,B19)-1","v":14},"C.Boateng",null,2,{"$f":" IF( 'Job History'!$D$2 > 0, IF( 1.2*'Job History'!$D$2 < VLOOKUP($C20, 'Job History'!$C:$H, 2, 0), 0, 1 ), 1 )","v":1},{"$f":" IF( 'Job History'!$D$3 > 0, IF( 1.2*'Job History'!$D$3 < VLOOKUP($C20, 'Job History'!$C:$H, 3, 0), 0, 1 ), 1 )","v":1},1,1,1,0,null,null,null,null,null,null,null,null,null,null,null,null,null,null,null,null,null,0,{"$f":"RANK($AC20,$AC$2:$AC$50)+COUNTIF(AD$1:AD19,AD19)-1","v":10}]
[446922.02100000001,{"$f":"RANK($A21,$A$2:$A$44)+COUNTIF(B$1:B20,B20)-1","v":26},"C.Keegan",null,2,1,{"$f":" IF( 'Job History'!$D$3 > 0, IF( 1.2*'Job History'!$D$3 < VLOOKUP($C21, 'Job History'!$C:$H, 3, 0), 0, 1 ), 1 )","v":1},1,1,1,0,null,null,null,null,null,null,null,null,null,null,null,null,null,null,null,null,null,0,{"$f":"RANK($AC21,$AC$2:$AC$50)+COUNTIF(AD$1:AD20,AD20)-1","v":1}]
[237886.022,{"$f":"RANK($A22,$A$2:$A$44)+COUNTIF(B$1:B21,B21)-1","v":36},"D.Hickmott",null,2,{"$f":" IF( 'Job History'!$D$2 > 0, IF( 1.2*'Job History'!$D$2 < VLOOKUP($C22, 'Job History'!$C:$H, 2, 0), 0, 1 ), 1 )","v":1},{"$f":" IF( 'Job History'!$D$3 > 0, IF( 1.2*'Job History'!$D$3 < VLOOKUP($C22, 'Job History'!$C:$H, 3, 0), 0, 1 ), 1 )","v":1},1,1,1,0,null,null,null,null,null,null,null,null,null,null,null,null,null,null,null,null,null,0,{"$f":"RANK($AC22,$AC$2:$AC$50)+COUNTIF(AD$1:AD21,AD21)-1","v":11}]
[104690.023,{"$f":"RANK($A23,$A$2:$A$44)+COUNTIF(B$1:B22,B22)-1","v":41},"D.Magill",null,1,0,{"$f":" IF( 'Job History'!$D$3 > 0, IF( 1.2*'Job History'!$D$3 < VLOOKUP($C23, 'Job History'!$C:$H, 3, 0), 0, 1 ), 1 )","v":1},0,1,1,0,null,null,null,null,null,null,null,null,null,null,null,null,null,null,null,null,null,0,{"$f":"RANK($AC23,$AC$2:$AC$50)+COUNTIF(AD$1:AD22,AD22)-1","v":1}]
[445202.02399999998,{"$f":"RANK($A24,$A$2:$A$44)+COUNTIF(B$1:B23,B23)-1","v":27},"E.Mullally",null,2,{"$f":" IF( 'Job History'!$D$2 > 0, IF( 1.2*'Job History'!$D$2 < VLOOKUP($C24, 'Job History'!$C:$H, 2, 0), 0, 1 ), 1 )","v":1},{"$f":" IF( 'Job History'!$D$3 > 0, IF( 1.2*'Job History'!$D$3 < VLOOKUP($C24, 'Job History'!$C:$H, 3, 0), 0, 1 ), 1 )","v":1},1,1,1,0,null,null,null,null,null,null,null,null,null,null,null,null,null,null,null,null,null,0,{"$f":"RANK($AC24,$AC$2:$AC$50)+COUNTIF(AD$1:AD23,AD23)-1","v":12}]
[427390.02500000002,{"$f":"RANK($A25,$A$2:$A$44)+COUNTIF(B$1:B24,B24)-1","v":29},"G.Franklin",null,2,1,{"$f":" IF( 'Job History'!$D$3 > 0, IF( 1.2*'Job History'!$D$3 < VLOOKUP($C25, 'Job History'!$C:$H, 3, 0), 0, 1 ), 1 )","v":1},1,1,1,0,null,null,null,null,null,null,null,null,null,null,null,null,null,null,null,null,null,0,{"$f":"RANK($AC25,$AC$2:$AC$50)+COUNTIF(AD$1:AD24,AD24)-1","v":1}]
[664519.02599999995,{"$f":"RANK($A26,$A$2:$A$44)+COUNTIF(B$1:B25,B25)-1","v":10},"G.Hawkins",null,2,{"$f":" IF( 'Job History'!$D$2 > 0, IF( 1.2*'Job History'!$D$2 < VLOOKUP($C26, 'Job History'!$C:$H, 2, 0), 0, 1 ), 1 )","v":1},{"$f":" IF( 'Job History'!$D$3 > 0, IF( 1.2*'Job History'!$D$3 < VLOOKUP($C26, 'Job History'!$C:$H, 3, 0), 0, 1 ), 1 )","v":1},1,1,1,0,null,null,null,null,null,null,null,null,null,null,null,null,null,null,null,null,null,0,{"$f":"RANK($AC26,$AC$2:$AC$50)+COUNTIF(AD$1:AD25,AD25)-1","v":13}]
[372944.027,{"$f":"RANK($A27,$A$2:$A$44)+COUNTIF(B$1:B26,B26)-1","v":32},"I.Edgar",null,2,1,{"$f":" IF( 'Job History'!$D$3 > 0, IF( 1.2*'Job History'!$D$3 < VLOOKUP($C27, 'Job History'!$C:$H, 3, 0), 0, 1 ), 1 )","v":1},1,1,1,0,null,null,null,null,null,null,null,null,null,null,null,null,null,null,null,null,null,0,{"$f":"RANK($AC27,$AC$2:$AC$50)+COUNTIF(AD$1:AD26,AD26)-1","v":1}]
[643815.02800000005,{"$f":"RANK($A28,$A$2:$A$44)+COUNTIF(B$1:B27,B27)-1","v":12},"J.Allen",null,2,{"$f":" IF( 'Job History'!$D$2 > 0, IF( 1.2*'Job History'!$D$2 < VLOOKUP($C28, 'Job History'!$C:$H, 2, 0), 0, 1 ), 1 )","v":1},{"$f":" IF( 'Job History'!$D$3 > 0, IF( 1.2*'Job History'!$D$3 < VLOOKUP($C28, 'Job History'!$C:$H, 3, 0), 0, 1 ), 1 )","v":1},1,1,1,0,null,null,null,null,null,null,null,null,null,null,null,null,null,null,null,null,null,0,{"$f":"RANK($AC28,$AC$2:$AC$50)+COUNTIF(AD$1:AD27,AD27)-1","v":14}]
[280275.02899999998,{"$f":"RANK($A29,$A$2:$A$44)+COUNTIF(B$1:B28,B28)-1","v":35},"J.Pyke",null,2,1,{"$f":" IF( 'Job History'!$D$3 > 0, IF( 1.2*'Job History'!$D$3 < VLOOKUP($C29, 'Job History'!$C:$H, 3, 0), 0, 1 ), 1 )","v":1},1,1,1,0,null,null,null,null,null,null,null,null,null,null,null,null,null,null,null,null,null,0,{"$f":"RANK($AC29,$AC$2:$AC$50)+COUNTIF(AD$1:AD28,AD28)-1","v":1}]
[757548.03,{"$f":"RANK($A30,$A$2:$A$44)+COUNTIF(B$1:B29,B29)-1","v":4},"J.Reynolds",null,2,{"$f":" IF( 'Job History'!$D$2 > 0, IF( 1.2*'Job History'!$D$2 < VLOOKUP($C30, 'Job History'!$C:$H, 2, 0), 0, 1 ), 1 )","v":1},{"$f":" IF( 'Job History'!$D$3 > 0, IF( 1.2*'Job History'!$D$3 < VLOOKUP($C30, 'Job History'!$C:$H, 3, 0), 0, 1 ), 1 )","v":1},1,1,1,0,null,null,null,null,null,null,null,null,null,null,null,null,null,null,null,null,null,0,{"$f":"RANK($AC30,$AC$2:$AC$50)+COUNTIF(AD$1:AD29,AD29)-1","v":15}]
[85662.031000000003,{"$f":"RANK($A31,$A$2:$A$44)+COUNTIF(B$1:B30,B30)-1","v":42},"L.R.Browne",null,2,{"$f":" IF( 'Job History'!$D$2 > 0, IF( 1.2*'Job History'!$D$2 < VLOOKUP($C31, 'Job History'!$C:$H, 2, 0), 0, 1 ), 1 )","v":1},{"$f":" IF( 'Job History'!$D$3 > 0, IF( 1.2*'Job History'!$D$3 < VLOOKUP($C31, 'Job History'!$C:$H, 3, 0), 0, 1 ), 1 )","v":1},1,1,1,0,null,null,null,null,null,null,null,null,null,null,null,null,null,null,null,null,null,0,{"$f":"RANK($AC31,$AC$2:$AC$50)+COUNTIF(AD$1:AD30,AD30)-1","v":1}]
[183321.03200000001,{"$f":"RANK($A32,$A$2:$A$44)+COUNTIF(B$1:B31,B31)-1","v":38},"P.Green",null,2,{"$f":" IF( 'Job History'!$D$2 > 0, IF( 1.2*'Job History'!$D$2 < VLOOKUP($C32, 'Job History'!$C:$H, 2, 0), 0, 1 ), 1 )","v":1},{"$f":" IF( 'Job History'!$D$3 > 0, IF( 1.2*'Job History'!$D$3 < VLOOKUP($C32, 'Job History'!$C:$H, 3, 0), 0, 1 ), 1 )","v":1},1,1,1,0,null,null,null,null,null,null,null,null,null,null,null,null,null,null,null,null,null,0,{"$f":"RANK($AC32,$AC$2:$AC$50)+COUNTIF(AD$1:AD31,AD31)-1","v":16}]
[159291.033,{"$f":"RANK($A33,$A$2:$A$44)+COUNTIF(B$1:B32,B32)-1","v":39},"P.McArthur",null,2,1,{"$f":" IF( 'Job History'!$D$3 > 0, IF( 1.2*'Job History'!$D$3 < VLOOKUP($C33, 'Job History'!$C:$H, 3, 0), 0, 1 ), 1 )","v":1},1,1,1,0,null,null,null,null,null,null,null,null,null,null,null,null,null,null,null,null,null,0,{"$f":"RANK($AC33,$AC$2:$AC$50)+COUNTIF(AD$1:AD32,AD32)-1","v":1}]
[950659.03399999999,{"$f":"RANK($A34,$A$2:$A$44)+COUNTIF(B$1:B33,B33)-1","v":1},"P.Regan",null,2,1,{"$f":" IF( 'Job History'!$D$3 > 0, IF( 1.2*'Job History'!$D$3 < VLOOKUP($C34, 'Job History'!$C:$H, 3, 0), 0, 1 ), 1 )","v":1},1,1,1,0,null,null,null,null,null,null,null,null,null,null,null,null,null,null,null,null,null,{"$f":"RAND()*AG34","v":0},{"$f":"RANK($AC34,$AC$2:$AC$50)+COUNTIF(AD$1:AD33,AD33)-1","v":17}]
[488548.03499999997,{"$f":"RANK($A35,$A$2:$A$44)+COUNTIF(B$1:B34,B34)-1","v":22},"R.Diprose",null,2,1,{"$f":" IF( 'Job History'!$D$3 > 0, IF( 1.2*'Job History'!$D$3 < VLOOKUP($C35, 'Job History'!$C:$H, 3, 0), 0, 1 ), 1 )","v":1},1,1,1,0,null,null,null,null,null,null,null,null,null,null,null,null,null,null,null,null,null,0,{"$f":"RANK($AC35,$AC$2:$AC$50)+COUNTIF(AD$1:AD34,AD34)-1","v":1}]
[524100.03600000002,{"$f":"RANK($A36,$A$2:$A$44)+COUNTIF(B$1:B35,B35)-1","v":20},"R.Pembroke",null,1,{"$f":" IF( 'Job History'!$D$2 > 0, IF( 1.2*'Job History'!$D$2 < VLOOKUP($C36, 'Job History'!$C:$H, 2, 0), 0, 1 ), 1 )","v":0},{"$f":" IF( 'Job History'!$D$3 > 0, IF( 1.2*'Job History'!$D$3 < VLOOKUP($C36, 'Job History'!$C:$H, 3, 0), 0, 1 ), 1 )","v":1},0,1,1,0,null,null,null,null,null,null,null,null,null,null,null,null,null,null,null,null,null,0,{"$f":"RANK($AC36,$AC$2:$AC$50)+COUNTIF(AD$1:AD35,AD35)-1","v":18}]
[537411.03700000001,{"$f":"RANK($A37,$A$2:$A$44)+COUNTIF(B$1:B36,B36)-1","v":19},"R.Rozniak",null,2,{"$f":" IF( 'Job History'!$D$2 > 0, IF( 1.2*'Job History'!$D$2 < VLOOKUP($C37, 'Job History'!$C:$H, 2, 0), 0, 1 ), 1 )","v":1},{"$f":" IF( 'Job History'!$D$3 > 0, IF( 1.2*'Job History'!$D$3 < VLOOKUP($C37, 'Job History'!$C:$H, 3, 0), 0, 1 ), 1 )","v":1},1,1,1,0,null,null,null,null,null,null,null,null,null,null,null,null,null,null,null,null,null,0,{"$f":"RANK($AC37,$AC$2:$AC$50)+COUNTIF(AD$1:AD36,AD36)-1","v":1}]
[324347.038,{"$f":"RANK($A38,$A$2:$A$44)+COUNTIF(B$1:B37,B37)-1","v":34},"S.Chow",null,1,{"$f":" IF( 'Job History'!$D$2 > 0, IF( 1.2*'Job History'!$D$2 < VLOOKUP($C38, 'Job History'!$C:$H, 2, 0), 0, 1 ), 1 )","v":0},{"$f":" IF( 'Job History'!$D$3 > 0, IF( 1.2*'Job History'!$D$3 < VLOOKUP($C38, 'Job History'!$C:$H, 3, 0), 0, 1 ), 1 )","v":1},0,1,1,0,null,null,null,null,null,null,null,null,null,null,null,null,null,null,null,null,null,0,{"$f":"RANK($AC38,$AC$2:$AC$50)+COUNTIF(AD$1:AD37,AD37)-1","v":19}]
[628082.03899999999,{"$f":"RANK($A39,$A$2:$A$44)+COUNTIF(B$1:B38,B38)-1","v":13},"S.Tariq",null,0,1,1,1,1,1,0,null,null,null,null,null,null,null,null,null,null,null,null,null,null,null,null,null,0,{"$f":"RANK($AC39,$AC$2:$AC$50)+COUNTIF(AD$1:AD38,AD38)-1","v":1}]
[443020.04,{"$f":"RANK($A40,$A$2:$A$44)+COUNTIF(B$1:B39,B39)-1","v":28},"T.Doyle",null,1,0,{"$f":" IF( 'Job History'!$D$3 > 0, IF( 1.2*'Job History'!$D$3 < VLOOKUP($C40, 'Job History'!$C:$H, 3, 0), 0, 1 ), 1 )","v":1},0,1,1,0,null,null,null,null,null,null,null,null,null,null,null,null,null,null,null,null,null,0,{"$f":"RANK($AC40,$AC$2:$AC$50)+COUNTIF(AD$1:AD39,AD39)-1","v":20}]
[390527.04100000003,{"$f":"RANK($A41,$A$2:$A$44)+COUNTIF(B$1:B40,B40)-1","v":31},"T.Harman",null,1,{"$f":" IF( 'Job History'!$D$2 > 0, IF( 1.2*'Job History'!$D$2 < VLOOKUP($C41, 'Job History'!$C:$H, 2, 0), 0, 1 ), 1 )","v":0},{"$f":" IF( 'Job History'!$D$3 > 0, IF( 1.2*'Job History'!$D$3 < VLOOKUP($C41, 'Job History'!$C:$H, 3, 0), 0, 1 ), 1 )","v":1},0,1,1,0,null,null,null,null,null,null,null,null,null,null,null,null,null,null,null,null,null,0,{"$f":"RANK($AC41,$AC$2:$AC$50)+COUNTIF(AD$1:AD40,AD40)-1","v":1}]
[577749.04200000002,{"$f":"RANK($A42,$A$2:$A$44)+COUNTIF(B$1:B41,B41)-1","v":17},"T.Underwood",null,10000000,1,0,1,0,0,0,null,null,null,null,null,null,null,null,null,null,null,null,null,null,null,null,null,0,{"$f":"RANK($AC42,$AC$2:$AC$50)+COUNTIF(AD$1:AD41,AD41)-1","v":21}]
[718340.04299999995,{"$f":"RANK($A43,$A$2:$A$44)+COUNTIF(B$1:B42,B42)-1","v":5},"T.Winter",null,1,0,{"$f":" IF( 'Job History'!$D$3 > 0, IF( 1.2*'Job History'!$D$3 < VLOOKUP($C43, 'Job History'!$C:$H, 3, 0), 0, 1 ), 1 )","v":1},0,1,1,0,null,null,null,null,null,null,null,null,null,null,null,null,null,null,null,null,null,0,{"$f":"RANK($AC43,$AC$2:$AC$50)+COUNTIF(AD$1:AD42,AD42)-1","v":1}]
[580909.04399999999,{"$f":"RANK($A44,$A$2:$A$44)+COUNTIF(B$1:B43,B43)-1","v":16},"V.Ilott",null,2,1,{"$f":" IF( 'Job History'!$D$3 > 0, IF( 1.2*'Job History'!$D$3 < VLOOKUP($C44, 'Job History'!$C:$H, 3, 0), 0, 1 ), 1 )","v":1},1,1,1,0,null,null,null,null,null,null,null,null,null,null,null,null,null,null,null,null,null,0,{"$f":"RANK($AC44,$AC$2:$AC$50)+COUNTIF(AD$1:AD43,AD43)-1","v":22}]
[null,null,null,null,null,null,null,null,null,null,null,null,null,null,null,null,null,null,null,null,null,null,null,null,null,null,null,null,0,{"$f":"RANK($AC45,$AC$2:$AC$50)+COUNTIF(AD$1:AD44,AD44)-1","v":1}]
[null,null,null,null,null,null,null,null,null,null,null,null,null,null,null,null,null,null,null,null,null,null,null,null,null,null,null,null,0,{"$f":"RANK($AC46,$AC$2:$AC$50)+COUNTIF(AD$1:AD45,AD45)-1","v":23}]
[null,null,null,null,null,null,null,null,null,null,null,null,null,null,null,null,null,null,null,null,null,null,null,null,null,null,null,null,0,{"$f":"RANK($AC47,$AC$2:$AC$50)+COUNTIF(AD$1:AD46,AD46)-1","v":1}]
[null,null,null,null,null,null,null,null,null,null,null,null,null,null,null,null,null,null,null,null,null,null,null,null,null,null,null,null,0,{"$f":"RANK($AC48,$AC$2:$AC$50)+COUNTIF(AD$1:AD47,AD47)-1","v":24}]
[null,null,null,null,null,null,null,null,null,null,null,null,null,null,null,null,null,null,null,null,null,null,null,null,null,null,null,null,0,{"$f":"RANK($AC49,$AC$2:$AC$50)+COUNTIF(AD$1:AD48,AD48)-1","v":1}]
[null,null,null,null,null,null,null,null,null,null,null,null,null,null,null,null,null,null,null,null,null,null,null,null,null,null,null,null,0,{"$f":"RANK($AC50,$AC$2:$AC$50)+COUNTIF(AD$1:AD49,AD49)-1","v":25}]

{"sheet":"ALL NAMES","index":4,"n_rows":67,"n_cols":2,"rows_kept":67,"cut":false,"hidden":false,"merged":[[0,0,0,1]]}
["All Names!"]
[1,"A.Bradbury"]
[2,"A.Hussey"]
[3,"A.McFarlane"]
[4,"A.Nicholls"]
[5,"B.Ratcliffe"]
[6,"A.Wall"]
[7,"A.Walton"]
[8,"B.Golubkov"]
[9,"B.Ratcliffe"]
[10,"B.Sutton"]
[11,"C.Boateng"]
[12,"C.Keegan"]
[13,"D.Caffell"]
[14,"D.Cooke"]
[15,"D.Hickmott"]
[16,"D.Magill"]
[17,"D.Roczniak"]
[18,"E.Lindo"]
[19,"E.Mooney"]
[20,"E.Mullally"]
[21,"E.Selickis"]
[22,"G.Franklin"]
[23,"G.Hawkins"]
[24,"H.Mohamed"]
[25,"I.Edgar"]
[26,"J.Allen"]
[27,"J.Gorrell"]
[28,"J.Hough"]
[29,"J.Pyke"]
[30,"J.Reynolds"]
[31,"K.Pape"]
[32,"K.Verdi"]
[33,"L.R.Browne"]
[34,"M.Abu"]
[35,"M.Borek"]
[36,"M.Flanagan"]
[37,"M.Kochowski"]
[38,"M.Kumar"]
[39,"M.Lawson"]
[40,"M.Pushotam"]
[41,"N.Lukasevicius"]
[42,"P.Chapman"]
[43,"P.Green"]
[44,"P.Johnson"]
[45,"P.Lavender"]
[46,"P.McArthur"]
[47,"P.Regan"]
[48,"R.Diprose"]
[49,"R.Hallgally"]
[50,"R.O’Meara"]
[51,"R.Pembroke"]
[52,"R.Rozniak"]
[53,"S.Abraham"]
[54,"S.Brookman"]
[55,"S.Chow"]
[56,"S.Harrison"]
[57,"S.Monk"]
[58,"S.Pearce"]
[59,"S.Stretton"]
[60,"S.Tariq"]
[61,"T.Bryan"]
[62,"T.Doyle"]
[63,"T.Harman"]
[64,"T.Watkins"]
[65,"T.Winter"]
[66,"V.Ilott"]